[Event "Titled Tuesday Blitz April 12 Early 2022"]
[White "Vokarev, Sergey"]
[Black "Gallegos Diaz, Carlos Alberto"]
[WhiteFideId "4119711"]
[BlackFideId "3900886"]
[WhiteElo "2343"]
[BlackElo "2362"]
[Result "1-0"]
[Round "03"]
[TimeControl "180+1"]
[Date "2022.04.13"]
[WhiteClock "0:00:26"]
[BlackClock "0:00:12"]

1. e4 {[%clk 0:03:00]}  d6 {[%clk 0:02:59]} 2. d4 {[%clk 0:03:00]}  Nf6 {[%clk 0:02:59]} 3. Nc3 {[%clk 0:02:58]}  c6 {[%clk 0:02:59]} 4. f4 {[%clk 0:02:53]}  Qa5 {[%clk 0:02:58]} 5. Bd3 {[%clk 0:02:52]}  e5 {[%clk 0:02:58]} 6. Nf3 {[%clk 0:02:52]}  Nbd7 {[%clk 0:02:56]} 7. O-O {[%clk 0:02:49]}  Be7 {[%clk 0:02:52]} 8. Kh1 {[%clk 0:02:47]}  O-O {[%clk 0:02:49]} 9. Qe1 {[%clk 0:01:59]}  Qc7 {[%clk 0:02:46]} 10. Bd2 {[%clk 0:01:55]}  Re8 {[%clk 0:02:43]} 11. a4 {[%clk 0:01:52]}  Bf8 {[%clk 0:02:37]} 12. Qh4 {[%clk 0:01:47]}  h6 {[%clk 0:02:30]} 13. dxe5 {[%clk 0:01:41]}  dxe5 {[%clk 0:02:29]} 14. fxe5 {[%clk 0:01:41]}  Nh7 {[%clk 0:02:06]} 15. Bc4 {[%clk 0:01:40]}  Nc5 {[%clk 0:01:59]} 16. Nd4 {[%clk 0:01:31]}  Be6 {[%clk 0:01:57]} 17. Nxe6 {[%clk 0:01:30]}  Nxe6 {[%clk 0:01:51]} 18. Rf5 {[%clk 0:01:28]}  Rad8 {[%clk 0:01:40]} 19. Be3 {[%clk 0:01:27]}  Qe7 {[%clk 0:01:29]} 20. Qxe7 {[%clk 0:01:23]}  Bxe7 {[%clk 0:01:26]} 21. Bxa7 {[%clk 0:01:22]}  Bb4 {[%clk 0:01:21]} 22. Raf1 {[%clk 0:01:19]}  Bxc3 {[%clk 0:01:18]} 23. bxc3 {[%clk 0:01:18]}  Rd7 {[%clk 0:01:17]} 24. h4 {[%clk 0:01:14]}  Nhf8 {[%clk 0:01:15]} 25. Be3 {[%clk 0:01:09]}  Ra8 {[%clk 0:01:13]} 26. Bb3 {[%clk 0:01:09]}  Ra5 {[%clk 0:00:57]} 27. Bb6 {[%clk 0:01:04]}  Ra8 {[%clk 0:00:49]} 28. a5 {[%clk 0:01:04]}  c5 {[%clk 0:00:47]} 29. Bd5 {[%clk 0:01:03]}  g6 {[%clk 0:00:42]} 30. Rf6 {[%clk 0:01:00]}  Kg7 {[%clk 0:00:42]} 31. c4 {[%clk 0:01:00]}  Re8 {[%clk 0:00:38]} 32. c3 {[%clk 0:00:59]}  Nh7 {[%clk 0:00:33]} 33. R6f2 {[%clk 0:00:55]}  Nhf8 {[%clk 0:00:27]} 34. g3 {[%clk 0:00:54]}  Rc8 {[%clk 0:00:24]} 35. Kg2 {[%clk 0:00:53]}  h5 {[%clk 0:00:23]} 36. Rb1 {[%clk 0:00:52]}  Nd8 {[%clk 0:00:20]} 37. Rfb2 {[%clk 0:00:48]}  Nfe6 {[%clk 0:00:19]} 38. Ba7 {[%clk 0:00:47]}  Ra8 {[%clk 0:00:18]} 39. Bb6 {[%clk 0:00:45]}  Nc6 {[%clk 0:00:17]} 40. Rb5 {[%clk 0:00:39]}  Nxe5 {[%clk 0:00:16]} 41. Bxc5 {[%clk 0:00:33]}  Nc7 {[%clk 0:00:14]} 42. Rxb7 {[%clk 0:00:29]}  Nxd5 {[%clk 0:00:14]} 43. cxd5 {[%clk 0:00:27]}  Rxb7 {[%clk 0:00:12]} 44. Rxb7 {[%clk 0:00:26]} 1-0


[Site "https://www.chess.com"]

[Event "Titled Tuesday Blitz April 12 Early 2022"]
[White "Vokhidov, Shamsiddin"]
[Black "Galperin, Platon"]
[WhiteFideId "14204223"]
[BlackFideId "14165414"]
[WhiteElo "2611"]
[BlackElo "2432"]
[Result "1-0"]
[Round "03"]
[TimeControl "180+1"]
[Date "2022.04.12"]
[WhiteClock "0:01:06"]
[BlackClock "0:00:02"]

1. e4 {[%clk 0:03:00]}  e5 {[%clk 0:02:59]} 2. Nf3 {[%clk 0:03:01]}  Nc6 {[%clk 0:03:00]} 3. Bb5 {[%clk 0:03:01]}  a6 {[%clk 0:03:00]} 4. Ba4 {[%clk 0:03:02]}  Nf6 {[%clk 0:03:01]} 5. O-O {[%clk 0:03:02]}  Be7 {[%clk 0:03:00]} 6. d3 {[%clk 0:03:02]}  b5 {[%clk 0:02:56]} 7. Bb3 {[%clk 0:03:03]}  O-O {[%clk 0:02:56]} 8. Nc3 {[%clk 0:03:02]}  d6 {[%clk 0:02:53]} 9. a3 {[%clk 0:03:02]}  Bg4 {[%clk 0:02:36]} 10. Be3 {[%clk 0:03:02]}  Nd4 {[%clk 0:02:34]} 11. Bxd4 {[%clk 0:03:02]}  exd4 {[%clk 0:02:34]} 12. Nd5 {[%clk 0:03:02]}  c6 {[%clk 0:02:33]} 13. h3 {[%clk 0:03:01]}  Bxf3 {[%clk 0:02:16]} 14. Nxe7+ {[%clk 0:03:00]}  Qxe7 {[%clk 0:02:17]} 15. Qxf3 {[%clk 0:03:01]}  a5 {[%clk 0:02:16]} 16. a4 {[%clk 0:02:56]}  Rfb8 {[%clk 0:02:11]} 17. axb5 {[%clk 0:02:53]}  Rxb5 {[%clk 0:02:10]} 18. Ra4 {[%clk 0:02:52]}  Qe5 {[%clk 0:01:31]} 19. Qe2 {[%clk 0:02:43]}  d5 {[%clk 0:01:16]} 20. f4 {[%clk 0:02:39]}  Qe7 {[%clk 0:01:16]} 21. Re1 {[%clk 0:02:26]}  Rab8 {[%clk 0:01:11]} 22. exd5 {[%clk 0:02:23]}  Qxe2 {[%clk 0:01:10]} 23. Rxe2 {[%clk 0:02:24]}  cxd5 {[%clk 0:00:59]} 24. Rxd4 {[%clk 0:02:21]}  g6 {[%clk 0:00:59]} 25. Kf2 {[%clk 0:02:15]}  Rb4 {[%clk 0:00:58]} 26. Rxb4 {[%clk 0:02:14]}  Rxb4 {[%clk 0:00:59]} 27. g4 {[%clk 0:01:49]}  a4 {[%clk 0:00:36]} 28. Ba2 {[%clk 0:01:49]}  Rxb2 {[%clk 0:00:32]} 29. c3 {[%clk 0:01:48]}  Rb5 {[%clk 0:00:15]} 30. Ke3 {[%clk 0:01:44]}  Nd7 {[%clk 0:00:09]} 31. Kd4 {[%clk 0:01:43]}  Nb6 {[%clk 0:00:07]} 32. c4 {[%clk 0:01:27]}  dxc4 {[%clk 0:00:07]} 33. dxc4 {[%clk 0:01:28]}  Ra5 {[%clk 0:00:07]} 34. c5 {[%clk 0:01:24]}  Na8 {[%clk 0:00:08]} 35. Re8+ {[%clk 0:01:21]}  Kg7 {[%clk 0:00:08]} 36. Re7 {[%clk 0:01:22]}  h6 {[%clk 0:00:03]} 37. Rxf7+ {[%clk 0:01:21]}  Kh8 {[%clk 0:00:04]} 38. Rb7 {[%clk 0:01:19]}  a3 {[%clk 0:00:04]} 39. f5 {[%clk 0:01:17]}  gxf5 {[%clk 0:00:04]} 40. gxf5 {[%clk 0:01:18]}  Ra6 {[%clk 0:00:04]} 41. Ke5 {[%clk 0:01:15]}  Ra5 {[%clk 0:00:02]} 42. Kd5 {[%clk 0:01:13]}  h5 {[%clk 0:00:02]} 43. f6 {[%clk 0:01:13]}  h4 {[%clk 0:00:01]} 44. Kd4 {[%clk 0:01:09]}  Ra4+ {[%clk 0:00:01]} 45. Ke3 {[%clk 0:01:07]}  Ra5 {[%clk 0:00:02]} 46. Rb8+ {[%clk 0:01:06]}  Kh7 {[%clk 0:00:02]} 47. f7 {[%clk 0:01:07]}  Rxc5 {[%clk 0:00:02]} 48. f8=Q {[%clk 0:01:06]}  Re5+ {[%clk 0:00:03]} 49. Kf4 {[%clk 0:01:06]}  Re6 {[%clk 0:00:02]} 1-0


[Site "https://www.chess.com"]

[Event "Titled Tuesday Blitz April 12 Early 2022"]
[White "Vovk, Orest"]
[Black "Aitbayev, Aslan"]
[WhiteFideId "14113490"]
[BlackFideId "13704613"]
[WhiteElo "2203"]
[BlackElo "2385"]
[Result "0-1"]
[Round "03"]
[TimeControl "180+1"]
[Date "2022.04.13"]
[WhiteClock "0:00:23"]
[BlackClock "0:00:22"]

1. h4 {[%clk 0:02:59]}  d5 {[%clk 0:02:53]} 2. h5 {[%clk 0:02:55]}  h6 {[%clk 0:02:53]} 3. e4 {[%clk 0:02:55]}  dxe4 {[%clk 0:02:52]} 4. Nc3 {[%clk 0:02:55]}  Nf6 {[%clk 0:02:52]} 5. Qe2 {[%clk 0:02:54]}  Nc6 {[%clk 0:02:46]} 6. Nxe4 {[%clk 0:02:53]}  Nd4 {[%clk 0:02:46]} 7. Nxf6+ {[%clk 0:02:54]}  gxf6 {[%clk 0:02:46]} 8. Qd1 {[%clk 0:02:54]}  Bf5 {[%clk 0:02:45]} 9. d3 {[%clk 0:02:54]}  Qd7 {[%clk 0:02:44]} 10. c3 {[%clk 0:02:53]}  Nc6 {[%clk 0:02:44]} 11. Be3 {[%clk 0:02:54]}  O-O-O {[%clk 0:02:44]} 12. Qa4 {[%clk 0:02:53]}  Kb8 {[%clk 0:02:10]} 13. O-O-O {[%clk 0:02:51]}  e5 {[%clk 0:02:07]} 14. Rh4 {[%clk 0:02:48]}  a6 {[%clk 0:01:50]} 15. g3 {[%clk 0:02:43]}  Ne7 {[%clk 0:01:42]} 16. Qa5 {[%clk 0:02:36]}  Qd5 {[%clk 0:01:38]} 17. Qa4 {[%clk 0:02:25]}  Bd7 {[%clk 0:01:32]} 18. Qb3 {[%clk 0:02:14]}  Qxb3 {[%clk 0:01:24]} 19. axb3 {[%clk 0:02:15]}  Nf5 {[%clk 0:01:25]} 20. Rh2 {[%clk 0:02:01]}  Rg8 {[%clk 0:01:20]} 21. Bd2 {[%clk 0:01:54]}  Bc5 {[%clk 0:01:18]} 22. Nf3 {[%clk 0:01:40]}  Bc6 {[%clk 0:01:13]} 23. Be2 {[%clk 0:01:35]}  Bb5 {[%clk 0:00:49]} 24. c4 {[%clk 0:01:19]}  Bc6 {[%clk 0:00:48]} 25. Nh4 {[%clk 0:01:11]}  Nd4 {[%clk 0:00:46]} 26. Bf1 {[%clk 0:01:06]}  Nxb3+ {[%clk 0:00:46]} 27. Kb1 {[%clk 0:01:07]}  Nxd2+ {[%clk 0:00:42]} 28. Rxd2 {[%clk 0:01:07]}  Be4 {[%clk 0:00:39]} 29. Kc2 {[%clk 0:01:00]}  Bh7 {[%clk 0:00:36]} 30. Bg2 {[%clk 0:00:51]}  Rg4 {[%clk 0:00:35]} 31. Bf3 {[%clk 0:00:45]}  Rxc4+ {[%clk 0:00:33]} 32. Kd1 {[%clk 0:00:44]}  Rxd3 {[%clk 0:00:29]} 33. g4 {[%clk 0:00:34]}  Rxd2+ {[%clk 0:00:23]} 34. Kxd2 {[%clk 0:00:34]}  Rc2+ {[%clk 0:00:24]} 35. Ke1 {[%clk 0:00:34]}  Rxb2 {[%clk 0:00:23]} 36. Bd5 {[%clk 0:00:34]}  c6 {[%clk 0:00:22]} 37. Bxf7 {[%clk 0:00:34]}  Bd3 {[%clk 0:00:22]} 38. Bg6 {[%clk 0:00:23]}  Bb4+ {[%clk 0:00:22]} 0-1


[Site "https://www.chess.com"]

[Event "Titled Tuesday Blitz April 12 Early 2022"]
[White "Xu, Yi"]
[Black "Esipenko, Andrey"]
[WhiteFideId "8605564"]
[BlackFideId "24175439"]
[WhiteElo "2471"]
[BlackElo "2617"]
[Result "0-1"]
[Round "03"]
[TimeControl "180+1"]
[Date "2022.04.12"]
[WhiteClock "0:00:55"]
[BlackClock "0:01:46"]

1. e4 {[%clk 0:03:00]}  e5 {[%clk 0:02:57]} 2. Nf3 {[%clk 0:03:00]}  Nc6 {[%clk 0:02:56]} 3. Bc4 {[%clk 0:03:01]}  Nf6 {[%clk 0:02:53]} 4. d3 {[%clk 0:03:01]}  Be7 {[%clk 0:02:48]} 5. O-O {[%clk 0:02:54]}  O-O {[%clk 0:02:47]} 6. Nc3 {[%clk 0:02:49]}  d6 {[%clk 0:02:45]} 7. a3 {[%clk 0:02:48]}  h6 {[%clk 0:02:43]} 8. h3 {[%clk 0:02:48]}  Re8 {[%clk 0:02:42]} 9. Re1 {[%clk 0:02:38]}  Bf8 {[%clk 0:02:41]} 10. d4 {[%clk 0:02:20]}  exd4 {[%clk 0:02:37]} 11. Nxd4 {[%clk 0:02:20]}  Nxd4 {[%clk 0:02:37]} 12. Qxd4 {[%clk 0:02:20]}  Be6 {[%clk 0:02:37]} 13. Bxe6 {[%clk 0:02:13]}  Rxe6 {[%clk 0:02:38]} 14. Bf4 {[%clk 0:02:10]}  c6 {[%clk 0:02:32]} 15. Rad1 {[%clk 0:02:09]}  Qb6 {[%clk 0:02:28]} 16. Qxb6 {[%clk 0:02:06]}  axb6 {[%clk 0:02:29]} 17. e5 {[%clk 0:02:01]}  Rae8 {[%clk 0:02:24]} 18. Kf1 {[%clk 0:01:45]}  dxe5 {[%clk 0:02:23]} 19. Be3 {[%clk 0:01:45]}  b5 {[%clk 0:02:23]} 20. Rd3 {[%clk 0:01:41]}  b4 {[%clk 0:02:07]} 21. axb4 {[%clk 0:01:39]}  Bxb4 {[%clk 0:02:08]} 22. Red1 {[%clk 0:01:34]}  b5 {[%clk 0:02:08]} 23. Ne2 {[%clk 0:01:25]}  Nd5 {[%clk 0:02:07]} 24. c3 {[%clk 0:01:26]}  Be7 {[%clk 0:02:06]} 25. Bc1 {[%clk 0:01:22]}  Ra8 {[%clk 0:02:00]} 26. Ng3 {[%clk 0:01:21]}  Kf8 {[%clk 0:01:59]} 27. Nf5 {[%clk 0:01:21]}  Bc5 {[%clk 0:01:57]} 28. Ne3 {[%clk 0:01:17]}  Bxe3 {[%clk 0:01:57]} 29. Bxe3 {[%clk 0:01:17]}  f6 {[%clk 0:01:54]} 30. Bc5+ {[%clk 0:01:17]}  Kf7 {[%clk 0:01:54]} 31. Ba3 {[%clk 0:01:16]}  Ra4 {[%clk 0:01:53]} 32. f3 {[%clk 0:01:14]}  e4 {[%clk 0:01:51]} 33. fxe4 {[%clk 0:01:14]}  Raxe4 {[%clk 0:01:52]} 34. Bc5 {[%clk 0:01:10]}  Rf4+ {[%clk 0:01:48]} 35. Bf2 {[%clk 0:01:09]}  Ne3+ {[%clk 0:01:47]} 36. Rxe3 {[%clk 0:01:01]}  Rxe3 {[%clk 0:01:48]} 37. g3 {[%clk 0:00:57]}  Rf5 {[%clk 0:01:48]} 38. g4 {[%clk 0:00:55]}  Rf4 {[%clk 0:01:46]} 0-1


[Site "https://www.chess.com"]

[Event "Titled Tuesday Blitz April 12 Early 2022"]
[White "Zaksaite, Salomeja"]
[Black "Hoang, Thi Bao Tram"]
[WhiteFideId "12801496"]
[BlackFideId "12401102"]
[WhiteElo "1953"]
[BlackElo "2125"]
[Result "0-1"]
[Round "03"]
[TimeControl "180+1"]
[Date "2022.04.13"]
[WhiteClock "0:00:01"]
[BlackClock "0:00:23"]

1. e4 {[%clk 0:02:51]}  c6 {[%clk 0:02:58]} 2. d4 {[%clk 0:02:47]}  d5 {[%clk 0:02:59]} 3. exd5 {[%clk 0:02:47]}  cxd5 {[%clk 0:02:59]} 4. c3 {[%clk 0:02:43]}  Nc6 {[%clk 0:02:56]} 5. Bd3 {[%clk 0:02:43]}  Nf6 {[%clk 0:02:54]} 6. h3 {[%clk 0:02:43]}  g6 {[%clk 0:02:52]} 7. Nf3 {[%clk 0:02:43]}  Bg7 {[%clk 0:02:52]} 8. O-O {[%clk 0:02:42]}  Qc7 {[%clk 0:02:51]} 9. Re1 {[%clk 0:02:36]}  O-O {[%clk 0:02:51]} 10. Be3 {[%clk 0:02:32]}  Nh5 {[%clk 0:02:46]} 11. Qd2 {[%clk 0:02:22]}  Rd8 {[%clk 0:02:40]} 12. Na3 {[%clk 0:02:22]}  a6 {[%clk 0:02:40]} 13. Nc2 {[%clk 0:02:21]}  Bd7 {[%clk 0:02:34]} 14. Rab1 {[%clk 0:02:09]}  b5 {[%clk 0:02:30]} 15. Na1 {[%clk 0:02:05]}  Na5 {[%clk 0:02:29]} 16. Nb3 {[%clk 0:02:03]}  Nc4 {[%clk 0:02:29]} 17. Qc1 {[%clk 0:02:01]}  Qc8 {[%clk 0:02:24]} 18. Kh2 {[%clk 0:01:57]}  Qc7+ {[%clk 0:02:22]} 19. Kg1 {[%clk 0:01:53]}  Be8 {[%clk 0:02:19]} 20. Nc5 {[%clk 0:01:52]}  Nxe3 {[%clk 0:02:03]} 21. Qxe3 {[%clk 0:01:49]}  e6 {[%clk 0:02:03]} 22. Ne5 {[%clk 0:01:44]}  Nf6 {[%clk 0:02:02]} 23. b4 {[%clk 0:01:32]}  Nd7 {[%clk 0:02:02]} 24. f4 {[%clk 0:01:25]}  Nxc5 {[%clk 0:01:57]} 25. bxc5 {[%clk 0:01:25]}  Qa5 {[%clk 0:01:57]} 26. Qd2 {[%clk 0:01:21]}  Rab8 {[%clk 0:01:56]} 27. Re2 {[%clk 0:01:12]}  Qc7 {[%clk 0:01:55]} 28. a3 {[%clk 0:01:03]}  Bh6 {[%clk 0:01:49]} 29. Rf2 {[%clk 0:01:02]}  f6 {[%clk 0:01:44]} 30. Ng4 {[%clk 0:01:01]}  Bg7 {[%clk 0:01:44]} 31. Qe2 {[%clk 0:00:59]}  Bf7 {[%clk 0:01:44]} 32. Re1 {[%clk 0:00:55]}  Qa5 {[%clk 0:01:43]} 33. Qb2 {[%clk 0:00:54]}  Qc7 {[%clk 0:01:40]} 34. g3 {[%clk 0:00:50]}  h5 {[%clk 0:01:32]} 35. Ne3 {[%clk 0:00:50]}  f5 {[%clk 0:01:29]} 36. Nf1 {[%clk 0:00:47]}  Bh6 {[%clk 0:01:27]} 37. h4 {[%clk 0:00:47]}  Bg7 {[%clk 0:01:24]} 38. Nh2 {[%clk 0:00:47]}  Bf6 {[%clk 0:01:23]} 39. Nf3 {[%clk 0:00:47]}  Kg7 {[%clk 0:01:24]} 40. Ne5 {[%clk 0:00:47]}  Bg8 {[%clk 0:01:24]} 41. Rfe2 {[%clk 0:00:47]}  Rdc8 {[%clk 0:01:17]} 42. Qb1 {[%clk 0:00:46]}  Qd8 {[%clk 0:01:14]} 43. Kg2 {[%clk 0:00:44]}  Qa5 {[%clk 0:01:12]} 44. Qb2 {[%clk 0:00:44]}  Qd8 {[%clk 0:01:12]} 45. Kh3 {[%clk 0:00:44]}  Qc7 {[%clk 0:01:11]} 46. Rb1 {[%clk 0:00:40]}  Qd8 {[%clk 0:01:05]} 47. Ree1 {[%clk 0:00:38]}  Qc7 {[%clk 0:01:01]} 48. Qe2 {[%clk 0:00:37]}  Qe7 {[%clk 0:01:00]} 49. Bc2 {[%clk 0:00:37]}  Qe8 {[%clk 0:00:55]} 50. Bd1 {[%clk 0:00:37]}  a5 {[%clk 0:00:52]} 51. Rb2 {[%clk 0:00:33]}  Rc7 {[%clk 0:00:49]} 52. Bc2 {[%clk 0:00:33]}  Rcb7 {[%clk 0:00:49]} 53. Reb1 {[%clk 0:00:33]}  Bd8 {[%clk 0:00:44]} 54. Bd3 {[%clk 0:00:33]}  b4 {[%clk 0:00:44]} 55. cxb4 {[%clk 0:00:28]}  axb4 {[%clk 0:00:44]} 56. axb4 {[%clk 0:00:22]}  Qa4 {[%clk 0:00:44]} 57. Qd2 {[%clk 0:00:16]}  Bc7 {[%clk 0:00:40]} 58. c6 {[%clk 0:00:16]}  Ra7 {[%clk 0:00:39]} 59. b5 {[%clk 0:00:16]}  Qxd4 {[%clk 0:00:38]} 60. Nxg6 {[%clk 0:00:14]}  Ra3 {[%clk 0:00:34]} 61. Ne5 {[%clk 0:00:10]}  Bxe5 {[%clk 0:00:32]} 62. fxe5 {[%clk 0:00:09]}  Qg4+ {[%clk 0:00:32]} 63. Kh2 {[%clk 0:00:09]}  f4 {[%clk 0:00:32]} 64. Qxf4 {[%clk 0:00:08]}  Qxf4 {[%clk 0:00:30]} 65. gxf4 {[%clk 0:00:08]}  Rxd3 {[%clk 0:00:31]} 66. c7 {[%clk 0:00:08]}  Rc8 {[%clk 0:00:31]} 67. b6 {[%clk 0:00:09]}  Rc3 {[%clk 0:00:31]} 68. b7 {[%clk 0:00:09]}  R3xc7 {[%clk 0:00:31]} 69. bxc8=Q {[%clk 0:00:08]}  Rxc8 {[%clk 0:00:31]} 70. Rb7+ {[%clk 0:00:09]}  Kh6 {[%clk 0:00:32]} 71. Rg1 {[%clk 0:00:07]}  Bh7 {[%clk 0:00:31]} 72. Rg5 {[%clk 0:00:06]}  Bf5 {[%clk 0:00:29]} 73. Kg3 {[%clk 0:00:06]}  Rc3+ {[%clk 0:00:29]} 74. Kf2 {[%clk 0:00:06]}  Rh3 {[%clk 0:00:27]} 75. Rb8 {[%clk 0:00:06]}  Kh7 {[%clk 0:00:25]} 76. Rb7+ {[%clk 0:00:05]}  Kh6 {[%clk 0:00:25]} 77. Rb8 {[%clk 0:00:06]}  Rxh4 {[%clk 0:00:22]} 78. Rh8+ {[%clk 0:00:05]}  Bh7 {[%clk 0:00:22]} 79. f5 {[%clk 0:00:05]}  Rf4+ {[%clk 0:00:22]} 80. Ke3 {[%clk 0:00:05]}  Kxg5 {[%clk 0:00:22]} 81. f6 {[%clk 0:00:02]}  Re4+ {[%clk 0:00:22]} 82. Kf3 {[%clk 0:00:02]}  Bg6 {[%clk 0:00:23]} 83. Rg8 {[%clk 0:00:02]}  Kf5 {[%clk 0:00:23]} 84. f7 {[%clk 0:00:01]}  Bxf7 {[%clk 0:00:23]} 85. Rf8 {[%clk 0:00:01]}  Kg6 {[%clk 0:00:23]} 0-1


[Site "https://www.chess.com"]

[Event "Titled Tuesday Blitz April 12 Early 2022"]
[White "Zia, Tahsin Tajwar"]
[Black "Ovezdurdyyeva, Jemal"]
[WhiteFideId "10211888"]
[BlackFideId "14001888"]
[WhiteElo "1800"]
[BlackElo "1946"]
[Result "1-0"]
[Round "03"]
[TimeControl "180+1"]
[Date "2022.04.13"]
[WhiteClock "0:01:59"]
[BlackClock "0:00:28"]

1. e4 {[%clk 0:03:00]}  d6 {[%clk 0:02:57]} 2. d4 {[%clk 0:03:00]}  Nf6 {[%clk 0:02:57]} 3. Nc3 {[%clk 0:03:00]}  g6 {[%clk 0:02:58]} 4. Bg5 {[%clk 0:02:57]}  Bg7 {[%clk 0:02:56]} 5. Nf3 {[%clk 0:02:57]}  c6 {[%clk 0:02:56]} 6. Qd2 {[%clk 0:02:56]}  b5 {[%clk 0:02:57]} 7. Bh6 {[%clk 0:02:55]}  Bxh6 {[%clk 0:02:56]} 8. Qxh6 {[%clk 0:02:55]}  b4 {[%clk 0:02:57]} 9. Ne2 {[%clk 0:02:40]}  Nxe4 {[%clk 0:02:55]} 10. Qg7 {[%clk 0:02:39]}  Rf8 {[%clk 0:02:40]} 11. Ng3 {[%clk 0:02:39]}  Nf6 {[%clk 0:02:33]} 12. Ng5 {[%clk 0:02:36]}  h5 {[%clk 0:02:03]} 13. N3e4 {[%clk 0:02:27]}  Nbd7 {[%clk 0:01:50]} 14. O-O-O {[%clk 0:02:23]}  Qa5 {[%clk 0:01:42]} 15. Bc4 {[%clk 0:02:15]}  d5 {[%clk 0:01:31]} 16. Nxf6+ {[%clk 0:02:14]}  exf6 {[%clk 0:01:28]} 17. Rhe1+ {[%clk 0:02:11]}  Kd8 {[%clk 0:01:27]} 18. Nxf7+ {[%clk 0:02:04]}  Rxf7 {[%clk 0:01:25]} 19. Qxf7 {[%clk 0:02:03]}  dxc4 {[%clk 0:01:25]} 20. d5 {[%clk 0:02:00]}  cxd5 {[%clk 0:00:41]} 21. Rxd5 {[%clk 0:02:01]}  Qxa2 {[%clk 0:00:39]} 22. Re8+ {[%clk 0:01:59]}  Kc7 {[%clk 0:00:38]} 23. Rxc8+ {[%clk 0:01:56]}  Rxc8 {[%clk 0:00:31]} 24. Qxd7+ {[%clk 0:01:57]}  Kb6 {[%clk 0:00:28]} 25. Rb5+ {[%clk 0:01:58]}  Ka6 {[%clk 0:00:28]} 26. Qb7# {[%clk 0:01:59]} 1-0


[Site "https://www.chess.com"]

[Event "Titled Tuesday Blitz April 12 Early 2022"]
[White "Abdusattorov, Nodirbek"]
[Black "Svane, Frederik"]
[WhiteFideId "14204118"]
[BlackFideId "12923044"]
[WhiteElo "2663"]
[BlackElo "2459"]
[Result "1/2-1/2"]
[Round "04"]
[TimeControl "180+1"]
[Date "2022.04.12"]
[WhiteClock "0:00:39"]
[BlackClock "0:00:09"]

1. d4 {[%clk 0:03:00]}  Nf6 {[%clk 0:03:00]} 2. c4 {[%clk 0:03:01]}  e6 {[%clk 0:03:00]} 3. Nf3 {[%clk 0:02:59]}  d5 {[%clk 0:03:00]} 4. Nc3 {[%clk 0:02:59]}  c5 {[%clk 0:02:59]} 5. e3 {[%clk 0:02:59]}  dxc4 {[%clk 0:02:48]} 6. Bxc4 {[%clk 0:02:58]}  a6 {[%clk 0:02:49]} 7. O-O {[%clk 0:02:43]}  b5 {[%clk 0:02:46]} 8. Bd3 {[%clk 0:02:43]}  Bb7 {[%clk 0:02:39]} 9. dxc5 {[%clk 0:02:28]}  Nbd7 {[%clk 0:02:36]} 10. b4 {[%clk 0:02:24]}  Be7 {[%clk 0:00:58]} 11. Bb2 {[%clk 0:02:23]}  O-O {[%clk 0:00:58]} 12. a3 {[%clk 0:02:16]}  Bxf3 {[%clk 0:00:57]} 13. gxf3 {[%clk 0:02:16]}  Ne5 {[%clk 0:00:58]} 14. Be2 {[%clk 0:02:16]}  Qc7 {[%clk 0:00:57]} 15. f4 {[%clk 0:02:13]}  Rfd8 {[%clk 0:00:56]} 16. Qc2 {[%clk 0:02:08]}  Ng6 {[%clk 0:00:56]} 17. Ne4 {[%clk 0:02:03]}  Nd5 {[%clk 0:00:51]} 18. Rfd1 {[%clk 0:01:56]}  a5 {[%clk 0:00:41]} 19. Nc3 {[%clk 0:01:56]}  Nxc3 {[%clk 0:00:35]} 20. Bxc3 {[%clk 0:01:53]}  Rab8 {[%clk 0:00:30]} 21. Rxd8+ {[%clk 0:01:52]}  Bxd8 {[%clk 0:00:30]} 22. Rd1 {[%clk 0:01:52]}  Be7 {[%clk 0:00:21]} 23. Qd3 {[%clk 0:01:52]}  Qc6 {[%clk 0:00:18]} 24. Qd7 {[%clk 0:01:51]}  Qe4 {[%clk 0:00:18]} 25. c6 {[%clk 0:01:50]}  Nh4 {[%clk 0:00:17]} 26. f3 {[%clk 0:01:01]}  Qxe3+ {[%clk 0:00:17]} 27. Kf1 {[%clk 0:01:01]}  Nxf3 {[%clk 0:00:17]} 28. Bxf3 {[%clk 0:00:41]}  Qxf3+ {[%clk 0:00:18]} 29. Kg1 {[%clk 0:00:42]}  Qe3+ {[%clk 0:00:18]} 30. Kf1 {[%clk 0:00:40]}  Qf3+ {[%clk 0:00:18]} 31. Kg1 {[%clk 0:00:40]}  Qg4+ {[%clk 0:00:16]} 32. Kh1 {[%clk 0:00:38]}  Qf3+ {[%clk 0:00:09]} 33. Kg1 {[%clk 0:00:39]} 1/2-1/2


[Site "https://www.chess.com"]

[Event "Titled Tuesday Blitz April 12 Early 2022"]
[White "Aitbayev, Aslan"]
[Black "Kadam, Om Manish"]
[WhiteFideId "13704613"]
[BlackFideId "45076294"]
[WhiteElo "2385"]
[BlackElo "1729"]
[Result "1-0"]
[Round "04"]
[TimeControl "180+1"]
[Date "2022.04.13"]
[WhiteClock "0:00:38"]
[BlackClock "0:00:13"]

1. e4 {[%clk 0:03:00]}  c5 {[%clk 0:02:54]} 2. Nf3 {[%clk 0:03:00]}  d6 {[%clk 0:02:52]} 3. c3 {[%clk 0:02:59]}  Nf6 {[%clk 0:02:52]} 4. Bd3 {[%clk 0:02:58]}  g6 {[%clk 0:02:51]} 5. O-O {[%clk 0:02:57]}  Bg7 {[%clk 0:02:52]} 6. h3 {[%clk 0:02:57]}  O-O {[%clk 0:02:52]} 7. Bc2 {[%clk 0:02:57]}  Nc6 {[%clk 0:02:49]} 8. d4 {[%clk 0:02:57]}  cxd4 {[%clk 0:02:48]} 9. cxd4 {[%clk 0:02:58]}  d5 {[%clk 0:02:49]} 10. e5 {[%clk 0:02:57]}  Ne4 {[%clk 0:02:49]} 11. Nc3 {[%clk 0:02:58]}  Nxc3 {[%clk 0:02:48]} 12. bxc3 {[%clk 0:02:59]}  Bd7 {[%clk 0:02:46]} 13. Rb1 {[%clk 0:02:53]}  b6 {[%clk 0:02:46]} 14. Ba3 {[%clk 0:02:40]}  Rc8 {[%clk 0:02:45]} 15. Nd2 {[%clk 0:02:26]}  Na5 {[%clk 0:02:44]} 16. Qf3 {[%clk 0:02:25]}  Be6 {[%clk 0:02:25]} 17. Rfc1 {[%clk 0:02:16]}  Qd7 {[%clk 0:02:22]} 18. Bb4 {[%clk 0:02:06]}  Nc6 {[%clk 0:02:20]} 19. Ba4 {[%clk 0:02:03]}  a6 {[%clk 0:01:48]} 20. Qe3 {[%clk 0:01:54]}  Rc7 {[%clk 0:01:45]} 21. Ba3 {[%clk 0:01:52]}  Rfc8 {[%clk 0:01:42]} 22. Rxb6 {[%clk 0:01:49]}  Rb7 {[%clk 0:01:23]} 23. Rcb1 {[%clk 0:01:47]}  Rxb6 {[%clk 0:01:04]} 24. Rxb6 {[%clk 0:01:48]}  Rc7 {[%clk 0:01:04]} 25. Rxa6 {[%clk 0:01:42]}  Qc8 {[%clk 0:01:04]} 26. Rxc6 {[%clk 0:01:40]}  Rxc6 {[%clk 0:01:05]} 27. Bxc6 {[%clk 0:01:40]}  Qxc6 {[%clk 0:01:06]} 28. Bxe7 {[%clk 0:01:41]}  Qa4 {[%clk 0:01:06]} 29. a3 {[%clk 0:01:36]}  Qc2 {[%clk 0:00:57]} 30. Kh2 {[%clk 0:01:27]}  h5 {[%clk 0:00:56]} 31. Nf3 {[%clk 0:01:20]}  Bf5 {[%clk 0:00:44]} 32. Bf6 {[%clk 0:01:12]}  Bf8 {[%clk 0:00:41]} 33. Ng5 {[%clk 0:01:05]}  Bxa3 {[%clk 0:00:32]} 34. e6 {[%clk 0:00:57]}  fxe6 {[%clk 0:00:31]} 35. Qe5 {[%clk 0:00:43]}  Qxf2 {[%clk 0:00:27]} 36. Qc7 {[%clk 0:00:40]}  Be4 {[%clk 0:00:13]} 37. Qg7# {[%clk 0:00:38]} 1-0


[Site "https://www.chess.com"]